Cogmind - Beta 11 X8 @@@ ROGUE MODE // 2021.10.27 @ 09:47:26 Player: kasaphescent Result: Destroyed by G-34 Mercenary with Small Laser Performance ------------- Evolutions (0) 0 Regions Visited (1) 200 Robots Destroyed (16) 80 Value Destroyed (542) 542 Prototype IDs (0) 0 Alien Tech Used (0) 0 Bonus (0) 0 TOTAL SCORE: 822 Bonus ------- None Cogmind --------- Core Integrity 0/250 Matter 283/300 Energy 140/160 System Corruption 1% Temperature Warm (120) Movement Hovering (180) Ox2 Location -10/Materials Parts ------- > --- POWER (1) -------- Light Nuclear Core > --- PROPULSION (2) --- Hover Unit > --- UTILITY (2) ------ Small Storage Unit Targeting Computer > --- WEAPON (2) ------- Medium Laser Medium Laser > --- INVENTORY (8) ---- Ion Engine Ion Engine Heat Sink Particle Gun Particle Gun Grenade Launcher Grenade Launcher Peak State ------------ > --- POWER ------------ Light Nuclear Core > --- PROPULSION ------- Aluminum Leg Aluminum Leg > --- UTILITY ---------- Small Storage Unit Targeting Computer > --- WEAPON ----------- Medium Laser Particle Gun > --- INVENTORY -------- Ion Engine Ion Engine Heat Sink Medium Laser Particle Gun [Rating: 10] Favorites ----------- Power Light Nuclear Core Engine Ion Engine Power Core Light Nuclear Core Propulsion Aluminum Leg Leg Aluminum Leg Wheel Compact Wheel Hover Unit Hover Unit Utility Small Storage Unit Storage Small Storage Unit Processor Targeting Computer Weapon Medium Laser Energy Gun Medium Laser Ballistic Gun Assault Rifle Launcher Grenade Launcher Build | -11 -10 ------- Run | Scr Mat Slots Evolved . | . . Power . | . . Propulsion . | . . Utility . | . . Weapon . | . . Parts Attached 24 | 6 18 Power 5 | 1 4 Engine 2 | 1 1 Core 3 | . 3 Reactor . | . . Propulsion 5 | 2 3 Treads . | . . Leg 2 | . 2 Wheel 2 | 2 . Hover 1 | . 1 Flight . | . . Utility 2 | 1 1 Device . | . . Storage 1 | 1 . Processor 1 | . 1 Hackware . | . . Protection . | . . Artifact . | . . Weapon 12 | 2 10 Energy Gun 9 | 1 8 Energy Cannon . | . . Ballistic Gun 1 | 1 . Ballistic Cannon . | . . Launcher 2 | . 2 Special Weapon . | . . Impact Weapon . | . . Slashing Weapon . | . . Piercing Weapon . | . . Special Melee Weapon . | . . Unidentified Prototypes . | . . Parts Lost 5 | . 5 Power 1 | . 1 Propulsion 1 | . 1 Utility . | . . Weapon 3 | . 3 Highest Loss Streak 4 | . 4 Average Slot Usage (%) 86 | . 86 Engine 3 | . 3 Core 8 | . 8 Leg 13 | . 13 Wheel 8 | . 8 Hover 1 | . 1 Storage 14 | . 14 Processor 12 | . 12 Energy Gun 20 | . 20 Ballistic Gun 3 | . 3 Naked Turns . | . . Heaviest Build 14 | 14 14 Greatest Support 26 | 26 26 Greatest Overweight (x) 4 | . 4 Average Overweight (x) . | . . Largest Inventory Capacity 8 | 8 8 Average Capacity 7 | 6 8 Most Carried 8 | . 8 Average Carried 3 | . 4 Final Capacity 8 | 8 8 Final Carried 7 | . 7 Class Distribution -------------------- 80% | Mutant 19% | Scavenger-Mutant Dominant Class ---------------- Mutant | -10/Materials Resources | -11 -10 ----------- Run | Scr Mat Matter Collected 485 | 174 311 Remotely . | . . Salvage Created 646 | . 646 Parts 26 | . 26 Haulers Intercepted . | . . Recyclers Shooed . | . . Parts Field Recycled . | . . Retrieved Matter . | . . Parts Self-Destructed . | . . Prevented . | . . Kills | -11 -10 ------- Run | Scr Mat Combat Hostiles Destroyed 14 | . 14 Guns 11 | . 11 AOE 3 | . 3 Classes Destroyed 3 | . 3 Worker 1 | . 1 Recycler 1 | . 1 Grunt 14 | . 14 Best Kill Streak 6 | . 6 Combat Bots Only 6 | . 6 Max Kills in Single Turn 2 | . 2 Gunslinging . | . . Exploded 2 | . 2 Melee . | . . Uniques/NPCs Destroyed . | . . Combat | -11 -10 -------- Run | Scr Mat Damage Taken 862 | . 862 Core 258 | . 258 Absorbed by Shields . | . . Core Remaining (%) 100 | 100 . Volleys Fired 48 | . 48 Largest 2 | . 2 Hottest 105 | . 105 Shots Fired 89 | . 89 Gun 85 | . 85 Cannon . | . . Launcher 4 | . 4 Special . | . . Kinetic 17 | . 17 Thermal 54 | . 54 Explosive 4 | . 4 Electromagnetic 14 | . 14 Robot Hit Streak 9 | . 9 Robot Miss Streak 5 | . 5 Penetration Max . | . . Secondary Targets 1 | . 1 Max Gunslinging Chain 1 | . 1 Shots Hit Robots 50 | . 50 Core Hits 33 | . 33 Critical Kills . | . . Critical Parts Destroyed 1 | . 1 Critical Strikes 2 | . 2 Burn 1 | . 1 Destroy 1 | . 1 Melee Attacks . | . . Impact . | . . Slashing . | . . Piercing . | . . Sneak Attacks . | . . Combat Hostiles . | . . Follow-up Attacks . | . . Damage Inflicted 1070 | . 1070 Guns 719 | . 719 Cannons . | . . Explosions 333 | . 333 Melee . | . . Ramming 18 | . 18 Kinetic 127 | . 127 Thermal 535 | . 535 Explosive 253 | . 253 Electromagnetic 137 | . 137 Impact . | . . Slashing . | . . Piercing . | . . Highest Corruption 1 | . 1 Average Corruption 1 | . 1 Corruption Purged . | . . Effects 4 | . 4 Message Errors 3 | . 3 Data Loss (minor) 1 | . 1 Overload Shots . | . . Overflow Damage . | . . Projectiles . | . . Explosions . | . . Melee . | . . Knockbacks . | . . Impact . | . . Kinetic . | . . Secondary . | . . Self-Inflicted Damage 12 | . 12 Shots 1 | . 1 Rammed 2 | . 2 Targets Rammed 4 | . 4 Kicked 2 | . 2 Crushed . | . . Highest Temperature 198 | . 198 Average Temperature 73 | . 73 Received Heat Transfer 474 | . 474 Siege Activations . | . . Robots Corrupted . | . . Combat Hostiles . | . . Parts Fried . | . . Impact Corruptions . | . . Robots Melted . | . . Combat Hostiles . | . . Parts Melted 6 | . 6 Heat Transferred 1294 | . 1294 Parts Sabotaged . | . . Parts Stolen . | . . Parts Stripped . | . . Power Chain Reactions 1 | . 1 Missiles Intercepted . | . . Alert | -11 -10 ------- Run | Scr Mat Peak Influence 340 | . 340 Initial . | . . Average 100 | . 119 Maximum Alert Level 1 | . 1 Low Security (%) 81 | 100 77 Level 1 18 | . 22 Level 2 . | . . Level 3 . | . . Level 4 . | . . Level 5 . | . . High Security . | . . Max Security . | . . Squads Dispatched 3 | . 3 Investigation 1 | . 1 Extermination . | . . Reinforcement 2 | . 2 Assault . | . . Garrison . | . . Intercept . | . . Construction Impeded . | . . Haulers Reinforced . | . . Active Scanning Responses . | . . Cargo Convoy Interrupts . | . . Stealth | -11 -10 --------- Run | Scr Mat Distress Signals 6 | . 6 Communications Jammed . | . . Distress Signals . | . . Times Spotted 32 | . 32 Peak Tracking Total 7 | . 7 Tactical Retreats 3 | . 3 Traps | -11 -10 ------- Run | Scr Mat Traps Triggered . | . . Indirectly . | . . Trap Hack Attempts . | . . Triggered . | . . Disarmed . | . . Reprogrammed . | . . Reused . | . . Traps Extracted . | . . Installed . | . . Triggered . | . . Machines | -11 -10 ---------- Run | Scr Mat Machines Disabled 2 | . 2 Max in Single Turn 1 | . 1 Machines Sabotaged . | . . Garrisons Compromised . | . . Overloaded Fab Kills . | . . Hacking | -11 -10 --------- Run | Scr Mat Machines Accessed 1 | . 1 Terminals 1 | . 1 Fabricators . | . . Repair Stations . | . . Recycling Units . | . . Scanalyzers . | . . Garrison Access . | . . Total Hacks 3 | . 3 Successful 1 | . 1 Failed 2 | . 2 Catastrophic . | . . Database Lockouts . | . . Manual . | . . Terminals 3 | . 3 Fabricators . | . . Repair Stations . | . . Recycling Units . | . . Scanalyzers . | . . Garrison Access . | . . Terminal Hacks 1 | . 1 Unreport Threat 1 | . 1 Fabricator Hacks . | . . Repair Station Hacks . | . . Recycling Unit Hacks . | . . Scanalyzer . | . . Garrison Access Hacks . | . . Unauthorized Hacks . | . . Terminals . | . . Fabricators . | . . Repair Stations . | . . Recycling Units . | . . Scanalyzers . | . . Garrison Access . | . . Data Cores Recovered . | . . Used . | . . Hacking Detections 1 | . 1 Full Trace Events 1 | . 1 Feedback Events . | . . Feedback Blocked . | . . Robot Schematics Acquired . | . . Robots Built . | . . Authchips . | . . Time . | . . Total Robot Build Rating . | . . Part Schematics Acquired . | . . Parts Built . | . . Authchips . | . . Time . | . . Total Part Build Rating . | . . Parts Repaired . | . . Time . | . . Parts Recycled . | . . Recycled Matter . | . . Retrieved Matter . | . . Retrieved Components . | . . Parts Scanalyzed . | . . Part Schematics Acquired . | . . Parts Damaged . | . . Bothacking | -11 -10 ------------ Run | Scr Mat Used RIF Installer . | . . Robots Hacked . | . . Non-combat . | . . Combat . | . . Robot Hacks Applied . | . . Relay Couplers Released . | . . Robots Rewired . | . . Allies Hacked . | . . Hacks Repelled . | . . Allies | -11 -10 -------- Run | Scr Mat Total Allies . | . . Largest Group . | . . Highest-Rated Group . | . . Highest-Rated Ally . | . . Total Orders . | . . Ally Attacks . | . . Total Damage . | . . Kills . | . . Allies Corrupted . | . . Allies Melted . | . . Intel | -11 -10 ------- Run | Scr Mat Robot Analysis Total . | . . Derelict Logs Recovered . | . . Drone Launches . | . . Drone Recoveries . | . . Exploration | -11 -10 ------------- Run | Scr Mat Turns Passed 883 | 140 743 Spaces Moved 602 | 150 452 Core 25 | 18 7 Treads . | . . Legs 242 | . 242 Wheels 290 | 132 158 Hover 45 | . 45 Flight . | . . Fastest Speed 50 | 50 90 Average Speed 110 | 85 118 Slowest Speed 250 | 100 250 Overloaded Moves . | . . Propulsion Burnouts . | . . Robots Hopped . | . . Cave-ins Triggered . | . . Exploration Rate (%) 26 | 8 44 Regions Visited 1 Branch Regions . Pre-discovered Areas . | . . Known Exits Taken . | . . Unknown Exits Taken 1 | 1 . Scrap Searched . | . . Spaces Dug 13 | . 13 Terrain Destroyed 25 | . 25 Melee . | . . Projectile . | . . AOE 25 | . 25 Terrain Rammed . | . . Walls Destroyed . | . . Machines Disabled . | . . Actions | -11 -10 --------- Run | Scr Mat Total 730 | 158 572 Wait 32 | 3 29 Move 601 | 149 452 Hop . | . . Pick Up 9 | . 9 Fast Attach 13 | 6 7 Attach 5 | . 5 Detach 7 | . 7 Swap 6 | . 6 Drop 5 | . 5 Fire 48 | . 48 Melee . | . . Ram 2 | . 2 Kick 2 | . 2 Crush . | . . Escape Stasis . | . . Rewire . | . . Trap . | . . Miscellaneous . | . . Route ------- -11/Scrapyard -10/Materials (discovered 3 exits: [*Mat] / [*Min x2]) History --------- Turn | Location | Event 4 | -11/Scrapyard | Discovered new exit (range 15) 141 | -11/Scrapyard | Entered Materials 176 | -10/Materials | Discovered new exit (range 9) 183 | -10/Materials | Discovered new exit (range 13) 304 | -10/Materials | Build established: Mutant 345 | -10/Materials | Lost 4 parts (1p1n2w) 364 | -10/Materials | Core integrity fell below 50% 399 | -10/Materials | Core integrity fell below 20% 550 | -10/Materials | Discovered new exit (range 11) 884 | -10/Materials | Destroyed by G-34 Mercenary with Small Laser Last Messages --------------- 00712_ U-05 Engineer builds a Wall. 00712_ U-05 Engineer lays Concrete. 00717_ U-05 Engineer builds a Wall. 00717_ U-05 Engineer lays Concrete. 00756_ O-16 Technician: "IFF HANDSHAKE FAILED. SECURING TERMINAL." 00758_ O-16 Technician uses terminal to summon reinforcements. 00758_ ALERT: Hostiles spotted, dispatching reinforcements to Terminal M006. 00758_ O-16 Technician locks terminal. 00766_ Y1 00793_ Acquired Hover Unit. 00820_ Slammed into O-16 Technician. 00820_ Destabilizing: Core damaged (-10). 00876_ W-16 Scout sends out distress signal. 00884_ G-34 Mercenary suffers critical hit (Burn). 00884_ Ion Engine melted. 00884_ Heat Sink melted. 00884_ G-34 Mercenary destroyed. 00884_ Switching to secondary target: G-34 Mercenary. Map ----- +----------------------------------------------------+ | | | | | | | | | | | | | | | | | | | | | | | | | | | | | ????????????????????????????????????????????????? | | ????????????????????????##########??????????????? | | ???????????????????###### """"" """?????????????? | | ????################ # """"" """"????????????? | | ????# # """"" """"" #?????????? | | ????# + #?????????? | | ######## ########## # #?????????? | | # # #????????## ## #?????????? | | # + #?#####???# #######+########?????????? | | # == # ###"""##??# ## ???????????????? | | # #^ ##"|||"##?# ## u""" ???????????????? | | # ! ####"" ""#?#g% @ """"" ????????????????? | | # ! #??# #?# ### """"" ????????????????? | | # #??# < #?# #?# """"" ????????????????? | | # "T" #??# #?# #?# """ ????????????????? | | # """ #??# #?# #?# ???? ?????????? | | ########???# #??# #?# ??? ""???????? | | ?????######## #####+##########??# """"?????? | | ?????# [[[ # # #?????????# """"?????? | | ?????# [ + + ! #?????????# ??????? | | ?????# [[ # #?????????# ????????? | | ?????# #########?????????# #?????????? | | ?????# !# ################### #?????????? | | ?????# [%* #?????????? | | ??########/## #?????????? | | ??# # "" " #?????????? | | ??# !! + "T ^""" #?????????? | | ??# ! ] #####= "" """ #?????????? | | ??# !] /#?? #%###### """ ###???????? | | ??# #?? # ## #?# ^ "" #???????? | | ??#! #?? #+# ##?# """ #???????? | | ??########?? #??# "" #???????? | | ????????????""? #??# """ ######### | | ????????????"Y?? #??# ####% ## | | ?????????????" ??#??# #""" # | | ?????????????? ?????# #" # | +----------------------------------------------------+ Best States ------------- Heat Dissipation 25 Energy Generation 14 Energy Capacity 250 Matter Stores 300 Matter Capacity 300 Sight Range 16 Terrain Scan Density 10 Evasion (%) 55 Targeting Accuracy 5 Item Schematics ----------------- None Robot Schematics ------------------ None Fabricated ------------ Nothing Alien Tech Used ----------------- None Achievements -------------- None Challenges ------------ None Game ------ Seed EtherialOverloadShield Manual? 0 Play Time 00:13:42 Cumulative 167.9 hours Start 2021.10.27 @ 09:36:31 End 2021.10.27 @ 09:47:26 Sessions 1 Manual Loads 0 Difficulty Rogue Special Mode None Game No. 108 Rogue 108 Adventurer 0 Explorer 0 Win Type - Total 2 Types 2/0/0/0/0/0/0/0/0 Lore% 55 Gallery% 72 Achievement% 51 Wizard Run 0 Options --------- ASCII 0 Keyboard 1 Movement Numpad Keybinds 0 Fullscreen 1 Font 24/Smallcaps Map View 76x50 Tactical HUD 1 Map Filters NONE Filters NONE Steam 1 RUN: cff17145-c6e3-4a25-a159-1d331a4a3903